bitfinex-derivatives/quotes_ETHF0:USTF0_20260222
["timestamp","ask_amount","ask_price","bid_price","bid_amount"]
[1771729886499,1.06596689,1976.4,1975.6,1.38435658]
[1771729886699,1.06082033,1976.2,1975.6,1.38435658]
[1771729887501,1.06696012,1976.2,1975.6,1.39092995]
[1771729890799,0.00613979,1976.2,1975.6,1.39092995]
[1771729891002,0.00632172,1976.1,1975.6,1.39092995]
[1771729891201,1.0690922,1976.1,1975.6,1.39092995]
[1771729891700,0.00632172,1976.0,1975.6,1.39092995]
[1771729891905,1.05029005,1976.0,1975.6,1.39092995]
[1771729892803,1.04506818,1976.1,1975.6,1.39092995]
[1771729893001,1.0513899,1976.1,1975.6,1.39092995]
[1771729895307,1.0513899,1976.1,1975.8,1.38435658]
[1771729895507,1.0513899,1976.1,1975.9,0.53325924]
[1771729895809,1.0513899,1976.1,1976.0,0.53325924]
[1771729896709,1.0513899,1976.1,1975.8,1.38435658]
[1771729896912,0.00632172,1976.0,1975.8,1.38435658]
[1771729897311,1.04506818,1976.1,1975.8,1.38435658]
[1771729897512,0.00632172,1976.0,1975.8,1.38435658]
[1771729897812,1.05489395,1976.0,1975.6,1.49322226]
[1771729900015,0.00632172,1976.0,1975.6,1.49322226]
[1771729903717,0.99899857,1976.2,1975.6,1.49322226]
[1771729903918,0.00632172,1976.0,1975.6,1.49322226]
[1771729907426,0.98839503,1976.2,1975.6,1.49322226]
[1771729907626,0.00632172,1976.1,1975.6,1.49322226]
[1771729908827,0.00632172,1976.1,1975.8,1.48664889]
[1771729909130,0.98839503,1976.2,1975.9,1.98333857]
[1771729909331,0.94079226,1976.5,1976.1,1.48664889]
[1771729909533,0.94079226,1976.5,1976.2,1.98333857]
[1771729909731,0.94079226,1976.5,1976.3,0.49668968]
[1771729909931,0.94079226,1976.5,1976.4,0.49668968]
[1771729910329,0.94500852,1976.5,1976.4,0.49668968]
[1771729910529,0.92078948,1976.8,1976.4,1.98333857]
[1771729910827,0.92078948,1976.8,1976.5,0.49668968]
[1771729911132,0.92078948,1976.8,1976.6,0.2992454]
[1771729911430,0.92078948,1976.8,1976.4,1.48664889]
[1771729911630,0.92457202,1976.8,1976.4,1.48664889]
[1771729912131,0.92457202,1976.8,1975.8,1.48664889]
[1771729912624,0.92457202,1976.8,1975.9,4.2442615]
[1771729912830,0.92457202,1976.8,1976.0,1.48664889]
[1771729916234,0.92457202,1976.8,1976.1,1.48664889]
[1771729916935,0.00378254,1976.8,1976.1,1.48664889]
[1771729917230,0.00378254,1976.8,1976.2,1.48664889]
[1771729917428,0.90339806,1977.1,1976.2,1.48664889]
[1771729917629,0.89785457,1976.9,1976.3,1.48664889]
[1771729918532,0.90163706,1976.9,1976.3,1.48664889]
[1771729918733,0.00378249,1976.9,1976.3,1.48664889]
[1771729919135,0.89625171,1976.9,1976.3,1.48664889]
[1771729923243,0.89625171,1976.9,1976.5,1.48664889]
[1771729924842,0.89625171,1976.9,1976.3,1.48664889]
[1771729925046,1.38304359,1976.7,1976.1,1.48664889]
[1771729925446,1.38304359,1976.7,1975.7,1.48664889]
[1771729925447,1.43650125,1976.4,1975.7,1.48664889]
[1771729930244,1.42694632,1976.6,1975.7,1.48664889]
[1771729931948,1.42694632,1976.6,1975.8,1.44699793]
[1771729932142,1.40135889,1976.4,1975.8,1.44699793]
[1771729942753,4.48459467,1976.7,1975.8,1.44699793]
[1771729942754,1.40135889,1976.2,1975.8,1.44699793]
[1771729942953,1.40135889,1976.2,1975.7,1.44699793]
[1771729943447,1.63965539,1976.5,1975.7,1.44699793]
[1771729943647,1.40135889,1976.4,1975.8,1.44699793]
[1771729948056,1.40135889,1976.6,1976.0,1.44699793]
[1771729951461,1.40135889,1976.7,1976.2,1.44699793]
[1771729960970,1.39905834,1976.4,1976.0,1.44544439]
[1771729972075,1.39905834,1976.6,1976.0,1.44544439]
[1771729977278,1.39905834,1976.7,1976.2,1.44544439]
[1771729995295,1.39905834,1976.7,1976.1,1.31752662]
[1771729995493,1.39905834,1976.7,1976.0,5.5659037]
[1771729995693,1.39905834,1976.7,1975.9,4.24837708]
[1771729995893,1.31396832,1976.6,1975.9,4.24837708]
[1771729996093,1.31396832,1976.6,1975.8,5.5659037]
[1771729996687,1.31396832,1976.6,1975.9,1.31752662]
[1771730012213,1.31396832,1976.6,1975.8,4.24837708]
[1771730012514,1.31396832,1976.6,1975.9,1.31752662]
[1771730017611,1.31396832,1976.6,1975.8,4.24837708]
[1771730017914,1.31396832,1976.6,1975.9,1.31802784]
[1771730019618,1.32572353,1976.5,1975.9,1.31802784]
[1771730019922,1.32572353,1976.5,1975.8,1.31802784]
[1771730022323,1.32572353,1976.3,1975.7,1.31802784]
[1771730037829,1.32572353,1976.3,1975.6,0.00657337]
[1771730039932,1.32572353,1976.3,1975.6,1.32460121]
[1771730043137,1.32572353,1976.3,1975.6,0.00657337]
[1771730043338,1.32572353,1976.3,1975.6,1.32460121]
[1771730048335,5.57232387,1976.3,1975.6,1.32460121]
[1771730048638,1.19444052,1976.2,1975.6,1.32460121]
[1771730053941,1.13415972,1976.1,1975.6,1.32460121]
[1771730086269,1.13415972,1976.1,1975.6,0.80702121]
[1771730086569,1.12316314,1975.9,1975.4,1.07677428]
[1771730087468,1.12316314,1975.9,1975.4,1.08320804]
[1771730092975,1.12316314,1975.9,1975.4,0.00643376]
[1771730093372,1.12316314,1975.9,1975.3,1.07677428]
[1771730093773,1.12316314,1975.8,1975.3,1.07677428]
[1771730094376,1.12316314,1975.8,1975.3,1.08181829]
[1771730094572,1.12316314,1975.7,1975.3,1.08181829]
[1771730102869,5.36976348,1976.0,1975.3,1.08181829]
[1771730103074,5.36976348,1976.1,1975.5,1.07677428]
[1771730105981,1.12316314,1976.0,1975.5,1.07677428]
[1771730114288,1.072105,1975.8,1975.4,1.0469614]
[1771730123993,1.072105,1975.8,1975.3,1.05200541]
[1771730125196,1.072105,1975.7,1975.1,1.0469614]
[1771730126090,1.072105,1975.7,1975.1,1.05246983]
[1771730135894,4.24660034,1975.8,1975.2,1.0469614]
[1771730136103,1.072105,1976.1,1975.2,1.0469614]
[1771730149206,1.05002778,1976.2,1975.5,1.02872133]
[1771730149405,6.59119228,1976.6,1975.5,1.02872133]
[1771730149406,1.05002778,1976.4,1975.5,1.02872133]
[1771730164010,1.64086571,1976.2,1975.4,1.02872133]
[1771730164212,1.05002778,1976.1,1975.2,1.02872133]
[1771730172227,1.00129911,1975.3,1974.7,1.08419408]
[1771730172820,1.00129911,1975.7,1974.7,1.08419408]
[1771730173223,1.00756687,1975.7,1974.7,1.08868671]
[1771730175934,1.00129911,1975.4,1974.7,1.08868671]
[1771730176330,1.00129911,1975.5,1974.7,1.08868671]
[1771730177725,1.00129911,1975.5,1974.9,1.08419408]
[1771730177932,1.00756687,1975.7,1975.1,1.08419408]
[1771730184633,2.64284859,1975.2,1974.8,1.08419408]
[1771730184837,1.00129911,1975.2,1974.8,1.08419408]
[1771730202950,1.00129911,1975.2,1974.7,1.09331874]
[1771730203152,1.04087527,1975.1,1974.7,1.09331874]
[1771730203853,1.04087527,1975.1,1974.7,0.00449263]
[1771730204253,1.04087527,1975.1,1974.7,1.09331874]
[1771730211956,1.04087527,1975.1,1974.7,0.00449263]
[1771730212359,1.04087527,1975.1,1974.7,1.09331874]
[1771730212859,1.04087527,1975.1,1974.7,0.00449263]
[1771730213061,1.04087527,1974.9,1974.5,1.08882611]
[1771730213962,1.04087527,1974.9,1974.5,1.09304778]
[1771730215260,1.04087527,1974.5,1974.1,1.08882611]
[1771730215855,1.04087527,1974.5,1973.5,1.08882611]
[1771730215856,1.04087527,1974.1,1973.5,1.08882611]
[1771730216156,1.04087527,1974.1,1973.5,0.00584411]
[1771730216157,1.04087527,1973.8,1973.5,0.00584411]
[1771730216358,1.04087527,1973.8,1973.4,1.08882611]
[1771730217456,1.04087527,1973.8,1973.4,1.09512498]
[1771730242379,1.04087527,1973.8,1972.9,6.3743217]
[1771730242380,1.04087527,1973.8,1973.0,1.05768273]
[1771730243279,1.01728198,1973.6,1972.9,1.05768273]
[1771730243477,1.01728198,1973.6,1972.9,1.06303814]
[1771730256990,1.01728198,1973.4,1972.6,1.05768273]
[1771730258292,1.01728198,1973.4,1972.6,1.06346935]
[1771730259087,1.08793507,1973.3,1972.6,0.00578662]
[1771730261891,1.08793507,1973.3,1972.6,1.0083673]
[1771730263191,1.08793507,1973.3,1972.6,0.00578662]
[1771730267788,1.64403063,1973.1,1972.6,0.00578662]
[1771730268089,1.64403063,1973.4,1972.3,1.00258068]
[1771730268090,1.08793507,1973.0,1972.3,1.00258068]
[1771730268993,1.08793507,1973.0,1972.3,1.00692381]
[1771730276402,1.08793507,1973.1,1972.3,1.00692381]
[1771730286403,1.08793507,1972.7,1972.0,7.37690238]
[1771730286603,1.08793507,1972.7,1972.0,1.00258068]
[1771730287408,1.09302099,1972.7,1972.0,1.00869396]
[1771730292805,1.09302099,1972.7,1972.0,0.00611328]
[1771730293005,5.24542257,1972.4,1971.7,1.10885818]
[1771730293205,1.01536036,1972.3,1971.4,1.10885818]
[1771730294008,1.01536036,1972.3,1971.4,1.11467421]
[1771730298715,1.64403063,1972.5,1970.8,0.25379]
[1771730298716,1.01536036,1971.8,1971.2,1.10885818]
[1771730299715,1.89766063,1972.2,1970.8,1.10885818]
[1771730299716,1.01536036,1971.5,1970.8,1.10885818]
[1771730299918,2.66364806,1971.4,1970.8,1.10885818]
[1771730300114,1.6482877,1970.9,1970.2,7.48317988]
[1771730300314,1.01536036,1971.0,1970.2,1.10885818]
[1771730300518,1.01536036,1970.8,1970.2,1.10885818]
[1771730300716,2.66364806,1970.7,1970.2,1.11502676]
[1771730300912,0.00626563,1970.8,1970.2,1.11502676]
[1771730300913,1.01536036,1970.6,1970.2,1.11502676]
[1771730301216,0.00626563,1970.8,1970.2,1.11502676]
[1771730301411,1.01536036,1970.7,1970.2,1.11502676]
[1771730302220,1.01536036,1971.4,1970.4,1.10885818]
[1771730302518,1.01536036,1971.3,1970.8,1.10885818]
[1771730302730,1.01536036,1971.1,1970.7,1.10885818]
[1771730303229,1.0196045,1971.1,1970.7,1.10885818]
[1771730303430,0.00424414,1971.1,1970.7,1.10885818]
[1771730303832,1.0196045,1971.1,1970.7,1.10885818]
[1771730304532,0.00424414,1971.1,1970.7,1.10885818]
[1771730304930,1.0196045,1971.1,1970.7,1.10885818]
[1771730306934,0.00424414,1971.1,1970.7,1.10885818]
[1771730307631,1.01536036,1971.4,1970.7,1.10885818]
[1771730308829,1.02146983,1971.4,1970.7,1.10885818]
[1771730314736,0.25368,1971.8,1970.7,1.10885818]
[1771730314737,1.01536036,1971.8,1970.7,1.10885818]
[1771730314938,1.01536036,1971.8,1971.1,1.10885818]
[1771730315839,1.02029895,1971.8,1971.1,1.10885818]
[1771730319235,1.08947347,1971.2,1970.7,1.11132385]
[1771730320038,1.08947347,1971.4,1970.7,1.11132385]
[1771730323441,1.08947347,1971.2,1970.7,1.11132385]
[1771730324932,1.08947347,1971.0,1970.3,1.11132385]
[1771730325343,1.08947347,1970.8,1970.3,1.11132385]
[1771730325536,0.85400875,1970.8,1970.3,1.11132385]
[1771730325741,1.08947347,1970.6,1970.2,1.11749243]
[1771730328347,1.08947347,1970.8,1970.2,1.11749243]
[1771730332350,1.08947347,1970.9,1970.4,1.11132385]
[1771730334143,1.6482877,1971.6,1970.6,1.11132385]
[1771730334144,1.08947347,1971.2,1970.6,1.11132385]
[1771730336947,1.08947347,1970.9,1970.3,1.11132385]
[1771730337247,1.08947347,1970.7,1970.2,1.11749243]
[1771730343752,1.08947347,1970.7,1970.2,0.00616858]
[1771730343961,1.08947347,1970.5,1970.2,0.00616858]
[1771730344256,1.08947347,1970.5,1969.9,1.11132385]
[1771730344759,1.08947347,1970.6,1969.9,1.11132385]
[1771730345059,1.08947347,1970.6,1970.1,1.11132385]
[1771730346662,1.08947347,1970.5,1969.9,1.11600453]
[1771730348060,1.08913519,1970.7,1970.0,1.08427906]
[1771730348764,1.08913519,1970.3,1969.9,0.00468068]
[1771730348961,1.09529535,1970.3,1969.9,0.00468068]
[1771730349669,1.09529535,1970.3,1969.9,1.08895974]
[1771730350668,0.00616016,1970.3,1969.9,2.73724744]
[1771730350868,0.00616016,1970.3,1970.0,1.08427906]
[1771730353065,1.05734959,1970.3,1970.0,1.08427906]
[1771730354771,1.05734959,1970.3,1969.9,1.03825741]
[1771730355070,1.05734959,1970.3,1969.9,0.00468068]
[1771730355266,1.05734959,1970.3,1969.9,1.03825741]
[1771730356066,0.00616016,1970.3,1969.9,1.03825741]
[1771730356871,1.05734959,1970.3,1969.9,1.03825741]
[1771730360268,1.05734959,1970.3,1969.2,2.66248511]
[1771730360469,1.6482877,1969.3,1968.3,1.11903592]
[1771730360666,1.67991541,1968.8,1968.3,1.11903592]
[1771730360873,2.69947713,1968.8,1967.9,1.03357673]
[1771730361173,1.05118943,1968.5,1967.8,1.03357673]
[1771730361376,1.05696492,1968.5,1967.8,1.03758591]
[1771730362174,1.05696492,1968.5,1967.8,0.00400918]
[1771730362377,1.05696492,1968.5,1967.8,1.03758591]
[1771730362674,1.05696492,1968.5,1968.0,1.03357673]
[1771730363270,1.05118943,1968.7,1968.0,1.03357673]
[1771730363671,1.05118943,1968.7,1968.1,1.03357673]
[1771730364075,1.05118943,1968.7,1967.8,0.00400918]
[1771730364275,1.05118943,1968.7,1966.6,1.03357673]
[1771730364572,1.05118943,1968.5,1966.6,1.03357673]
[1771730364774,1.05118943,1968.5,1966.7,1.03357673]
[1771730365279,1.05647668,1968.5,1966.9,1.03357673]
[1771730365674,1.05647668,1968.5,1967.1,2.53760001]
[1771730365868,1.05647668,1968.5,1967.2,1.03357673]
[1771730366175,1.05647668,1968.5,1967.3,2.53760001]
[1771730366373,1.05647668,1968.5,1967.4,1.03357673]
[1771730366772,1.05647668,1968.5,1967.8,1.03357673]
[1771730367275,1.05647668,1968.5,1966.7,0.00604859]
[1771730367276,0.00528725,1968.5,1968.0,1.03357673]
[1771730367783,1.05118943,1969.3,1968.2,1.03357673]
[1771730368874,1.05617733,1969.3,1968.3,1.03357673]
[1771730369278,1.05617733,1969.3,1968.5,1.03357673]
[1771730369876,1.05617733,1969.3,1968.6,1.03357673]
[1771730370181,1.05617733,1969.3,1968.3,1.03357673]
[1771730371779,1.05617733,1969.3,1968.4,1.03357673]
[1771730372370,1.05617733,1969.3,1968.5,1.03357673]
[1771730373678,1.05617733,1969.3,1968.5,3.57117674]
[1771730373880,1.05617733,1969.3,1968.6,1.03357673]
[1771730374281,1.05617733,1969.3,1968.3,1.03357673]
[1771730376380,1.05617733,1969.3,1968.4,1.03357673]
[1771730377084,1.05617733,1969.3,1968.5,1.03357673]
[1771730377280,1.05617733,1969.3,1968.3,1.03357673]
[1771730378276,1.05617733,1969.3,1968.3,1.58307059]
[1771730380388,1.05617733,1969.3,1968.5,1.58307059]
[1771730380991,1.05617733,1969.3,1968.6,1.58307059]
[1771730382193,1.05617733,1969.3,1968.6,4.1206706]
[1771730382395,1.05617733,1969.3,1968.7,1.58307059]
[1771730383091,1.54178639,1969.7,1969.0,1.58307059]
[1771730383696,1.54178639,1969.7,1968.3,1.58307059]
[1771730384097,1.54579658,1969.7,1968.9,1.58307059]
[1771730384702,1.54579658,1969.7,1969.3,1.58307059]
[1771730385097,1.54579658,1969.7,1968.3,1.58307059]
[1771730385394,1.54579658,1969.7,1968.8,1.58307059]
[1771730387203,1.54579658,1969.7,1969.0,1.58307059]
[1771730387902,1.54579658,1969.7,1968.3,1.58307059]
[1771730388202,1.54178639,1969.5,1968.6,1.58307059]
[1771730388695,1.54178639,1969.5,1968.8,4.1206706]
[1771730388898,1.54178639,1969.5,1968.8,1.58307059]
[1771730389100,1.54178639,1969.5,1968.9,4.1206706]
[1771730389404,1.54178639,1969.3,1968.9,1.58307059]
[1771730389599,1.54178639,1969.3,1968.9,4.1206706]
[1771730389799,1.54178639,1969.3,1969.0,1.58307059]
[1771730390199,1.54178639,1969.3,1969.2,2.53760001]
[1771730390400,1.52950837,1969.3,1969.2,2.53760001]
[1771730392301,1.54178639,1969.6,1969.2,4.1206706]
[1771730392500,8.52110083,1969.5,1969.2,4.1206706]
[1771730392700,6.97931444,1969.4,1969.2,1.58307059]
[1771730392897,0.00401019,1969.7,1969.2,1.58307059]
[1771730392898,1.54178639,1969.6,1969.4,2.53760001]
[1771730393099,6.97920771,1969.5,1969.2,1.58307059]
[1771730393403,6.97920771,1969.4,1969.3,2.53760001]
[1771730393599,6.97920771,1969.4,1969.2,1.58307059]
[1771730393796,1.54178639,1969.6,1969.2,1.58307059]
[1771730393999,6.95879937,1969.5,1969.4,2.53760001]
[1771730394200,6.95879937,1969.5,1969.2,1.58307059]
[1771730394402,6.95879937,1969.4,1969.2,1.58307059]
[1771730394603,1.54178639,1969.6,1969.2,1.58307059]
[1771730394799,6.96287479,1969.5,1969.2,1.58307059]
[1771730395003,6.96287479,1969.4,1969.2,1.58307059]
[1771730395199,1.54178639,1969.6,1969.2,1.58307059]
[1771730395504,1.54178639,1969.4,1968.9,1.58307059]
[1771730395699,4.17531704,1969.7,1968.9,1.58307059]
[1771730395700,1.54178639,1969.6,1968.9,1.58307059]
[1771730395899,6.96943922,1969.5,1968.9,1.58307059]
[1771730396101,1.54579658,1969.7,1968.9,1.58307059]
[1771730396296,6.96961303,1969.6,1968.9,1.58307059]
[1771730396494,6.96961303,1969.5,1969.4,4.1206706]
[1771730396698,6.96961303,1969.5,1969.4,1.58307059]
[1771730396901,5.81267577,1969.5,1969.4,4.1206706]
[1771730397093,1.54579658,1969.7,1969.4,4.1206706]
[1771730397300,0.00401019,1969.7,1969.4,1.58307059]
[1771730397601,0.00401019,1969.7,1969.6,2.53760001]
[1771730397904,0.00401019,1969.7,1969.6,2.54209808]
[1771730398207,5.71309324,1970.0,1969.6,1.58756866]
[1771730398504,1.54178639,1970.0,1969.6,1.58756866]
[1771730398701,1.54178639,1970.0,1969.3,1.58307059]
[1771730399601,1.54648565,1970.0,1969.3,1.58833118]
[1771730400911,1.54648565,1970.0,1969.3,0.00526059]
[1771730401102,1.54648565,1970.0,1969.2,0.74800296]
[1771730401103,1.54178639,1969.8,1968.1,0.25415]
[1771730401402,1.54178639,1969.8,1968.3,1.58307059]
[1771730401805,1.54178639,1969.4,1968.3,1.58307059]
[1771730402306,1.54178639,1969.4,1968.3,1.58796307]
[1771730404703,1.54178639,1969.8,1968.3,1.58796307]
[1771730406306,1.54178639,1969.8,1968.5,1.58307059]
[1771730406814,1.54178639,1969.8,1968.6,1.58307059]
[1771730407110,1.54648565,1970.0,1968.6,1.58307059]
[1771730407509,0.00469926,1970.0,1968.6,1.58307059]
[1771730408305,0.00469926,1970.0,1968.8,1.55038293]
[1771730410110,1.61140058,1970.0,1968.8,1.55038293]
[1771730411206,1.60670132,1969.8,1968.8,1.55038293]
[1771730422723,1.60670132,1969.8,1968.9,1.62930748]
[1771730423018,1.60670132,1969.8,1969.0,1.62930748]
[1771730425415,1.57935437,1969.6,1968.7,1.62930748]
[1771730429221,1.57935437,1969.4,1968.6,1.62930748]
[1771730432433,1.57935437,1968.9,1968.1,0.7494237]
[1771730432631,1.57935437,1968.7,1968.1,0.7494237]
[1771730432927,1.57935437,1968.7,1968.1,2.37873118]
[1771730433530,1.57935437,1968.7,1968.1,2.3847244]
[1771730433930,1.57935437,1968.7,1968.2,1.62930748]
[1771730437132,1.57935437,1968.7,1968.1,0.75541692]
[1771730438936,1.57935437,1968.7,1968.2,1.55492139]
[1771730443040,0.25402,1969.1,1968.1,0.75541692]
[1771730443041,1.49335525,1969.0,1968.1,0.75541692]
[1771730443540,1.49335525,1968.9,1968.1,0.75541692]
[1771730448048,1.49335525,1968.9,1968.2,1.55492139]
[1771730451053,7.82135525,1969.3,1968.2,1.55492139]
[1771730451254,1.49335525,1969.3,1968.2,1.55492139]
[1771730455251,1.49335525,1969.6,1968.3,1.55492139]
[1771730462856,1.49335525,1969.4,1968.3,1.55492139]
[1771730463061,1.49335525,1969.2,1968.3,1.55492139]
[1771730470466,1.38296174,1969.7,1968.3,1.55492139]
[1771730470661,1.38296174,1969.5,1968.3,1.55492139]
[1771730471562,1.46966761,1969.9,1968.6,1.44693462]
[1771730471770,1.47436687,1970.0,1968.9,1.44693462]
[1771730479973,1.47436687,1970.0,1969.0,1.44693462]
[1771730480766,0.00469926,1970.0,1969.0,1.44693462]
[1771730482376,0.00469926,1970.0,1969.3,1.44693462]
[1771730483574,1.46966761,1970.3,1969.3,1.44693462]
[1771730484769,1.47351627,1970.3,1969.3,1.44693462]
[1771730485674,1.47351627,1970.3,1969.2,1.44693462]
[1771730490181,1.46966761,1970.1,1969.2,1.44693462]
[1771730494984,1.47351627,1970.3,1969.2,1.44693462]
[1771730496687,0.00384866,1970.3,1969.2,1.44693462]
[1771730496888,0.00384866,1970.3,1969.2,9.41339082]
[1771730497388,0.00384866,1970.3,1969.3,1.44693462]
[1771730497580,1.47351627,1970.3,1969.3,1.44693462]
[1771730499189,0.00384866,1970.3,1969.3,1.44693462]
[1771730499583,1.36171252,1970.3,1969.3,1.44693462]
[1771730510003,1.36171252,1970.3,1969.4,1.30219836]
[1771730513403,1.36171252,1970.3,1969.7,1.30219836]
[1771730513705,1.36171252,1970.3,1969.7,1.30837609]
[1771730515103,1.36171252,1970.3,1969.7,0.00617773]
[1771730519808,1.36171252,1970.3,1969.7,1.30837609]
[1771730520108,1.36171252,1970.3,1969.7,0.00617773]
[1771730521011,1.36171252,1970.3,1969.7,1.30837609]
[1771730521406,1.36171252,1970.3,1969.7,0.00617773]
[1771730523311,1.35786386,1970.1,1969.7,0.00617773]
[1771730533212,1.27564831,1969.9,1969.0,1.28817132]
[1771730534113,1.27564831,1969.9,1969.0,1.29257061]
[1771730535815,1.27564831,1969.5,1968.6,1.28817132]
[1771730536819,1.27564831,1969.5,1968.6,1.29328169]
[1771730537414,1.27564831,1969.5,1968.8,1.28817132]
[1771730541618,1.27564831,1969.5,1968.7,1.28817132]
[1771730541922,1.27564831,1969.5,1968.6,1.29328169]
[1771730544615,1.27564831,1969.5,1968.7,1.28817132]
[1771730545920,1.27564831,1969.5,1968.8,1.28817132]
[1771730547426,1.27564831,1969.5,1968.7,1.65122203]
[1771730547427,1.27564831,1969.5,1969.0,1.28817132]
[1771730550428,1.27564831,1969.7,1969.3,1.28817132]
[1771730550719,1.27564831,1970.2,1969.6,1.65122203]
[1771730550920,1.27564831,1970.2,1969.9,1.28817132]
[1771730553131,1.27949697,1970.3,1969.9,1.28817132]
[1771730553330,0.00384866,1970.3,1969.9,1.28817132]
[1771730553629,1.27949697,1970.3,1969.9,1.28817132]
[1771730553932,0.00384866,1970.3,1969.9,1.28817132]
[1771730555528,0.00384866,1970.3,1970.1,1.28817132]
[1771730555727,0.00384866,1970.3,1970.1,1.29241524]
[1771730559531,1.16307646,1970.9,1970.3,1.2350003]
[1771730560430,1.16692389,1970.9,1970.3,1.2350003]
[1771730562226,1.16307646,1971.2,1970.5,1.2350003]
[1771730562434,1.16307646,1971.1,1970.5,1.2350003]
[1771730563335,1.16915257,1971.1,1970.5,1.2350003]
[1771730567237,1.16915257,1971.1,1970.6,1.8230003]
[1771730567634,1.16915257,1971.1,1970.7,1.2350003]
[1771730570726,1.16307646,1970.9,1970.6,0.588]
[1771730572635,1.16307646,1970.9,1970.4,1.2350003]
[1771730575736,1.16915257,1971.1,1970.4,1.2350003]
[1771730575940,1.16915257,1971.1,1970.6,1.2350003]
[1771730581047,0.00607611,1971.1,1970.6,1.2350003]
[1771730581246,1.16307646,1971.3,1970.6,1.2350003]
[1771730581640,1.16307646,1971.3,1970.5,1.65122203]
[1771730581641,1.16307646,1971.4,1970.8,1.2350003]
[1771730582245,1.1676091,1971.4,1970.8,1.2350003]
[1771730583152,1.16307646,1971.5,1971.0,1.2350003]
[1771730583351,1.16307646,1971.7,1971.0,1.2350003]
[1771730584152,1.16847746,1971.7,1971.2,1.2350003]
[1771730585148,1.16847746,1971.7,1971.1,1.65122203]
[1771730585149,1.16847746,1971.7,1971.4,1.2350003]
[1771730585355,1.16307646,1971.8,1971.4,1.2350003]
[1771730585748,1.16307646,1971.9,1971.4,1.2350003]
[1771730586447,1.16846486,1971.9,1971.4,1.2350003]
[1771730590252,0.0053884,1971.9,1971.4,2.88622233]
[1771730590457,0.0053884,1971.9,1971.5,1.13292692]
[1771730590758,0.0053884,1971.9,1971.5,1.13871069]
[1771730591055,2.79109582,1971.9,1971.5,0.00578377]
[1771730591352,1.13987379,1971.8,1971.3,1.13292692]
[1771730591557,1.13987379,1971.8,1971.2,1.15614687]
[1771730592248,1.14460286,1971.8,1971.2,1.16101535]
[1771730593553,1.12212478,1971.6,1971.2,0.00486848]
[1771730593758,1.12212478,1971.6,1970.7,1.65122203]
[1771730593961,1.12212478,1971.6,1970.8,1.15614687]
[1771730594658,1.12212478,1971.6,1970.8,1.16093894]
[1771730595754,1.12212478,1971.4,1970.8,1.16093894]
[1771730606277,1.12212478,1971.2,1970.8,1.16093894]
[1771730610985,1.12212478,1971.2,1970.6,1.15614687]
[1771730611979,1.12212478,1971.2,1970.6,1.16249511]
[1771730612583,1.12212478,1971.2,1970.6,0.00634824]
[1771730612984,1.12212478,1971.0,1970.0,1.15614687]
[1771730613986,1.12212478,1971.0,1970.0,1.16164813]
[1771730617686,1.12212478,1971.0,1970.2,1.15614687]
[1771730633595,1.06151241,1970.8,1970.0,1.11202879]
[1771730638298,1.06151241,1970.6,1970.0,1.11202879]
[1771730639808,1.06151241,1970.9,1970.0,1.11202879]
[1771730641207,1.06151241,1970.9,1969.7,1.10652753]
[1771730641208,1.06151241,1970.4,1969.7,1.10652753]
[1771730642311,1.06724284,1970.4,1969.7,1.11114376]
[1771730644710,0.00573043,1970.4,1969.7,1.11114376]
[1771730646407,0.00573043,1970.4,1969.9,1.10652753]
[1771730646809,1.06151241,1970.6,1969.9,1.10652753]
[1771730647810,1.06543186,1970.6,1969.9,1.10652753]
[1771730651417,1.06543186,1970.6,1969.8,1.16358674]
[1771730658124,5.94855964,1970.5,1969.8,1.16358674]
[1771730658425,1.14068458,1970.6,1969.8,1.16358674]
[1771730660124,1.13676513,1970.4,1969.8,1.16358674]
[1771730664930,1.14068458,1970.6,1969.8,1.16358674]
[1771730665122,1.13676513,1970.4,1969.8,1.16358674]
[1771730674836,1.13676513,1970.2,1969.8,1.16358674]
[1771730675634,1.13676513,1970.2,1969.7,1.06655679]
[1771730677941,1.0570121,1970.5,1969.9,1.08132133]
[1771730678241,1.06093155,1970.6,1970.3,1.08132133]
[1771730678640,0.00391945,1970.6,1970.3,1.08132133]
[1771730683148,1.0570121,1970.8,1970.3,1.08132133]
[1771730683943,1.0570121,1971.2,1970.5,1.08132133]
[1771730684146,6.97973255,1971.1,1970.5,1.08132133]
[1771730684347,1.0570121,1971.1,1970.5,1.08132133]
[1771730688346,1.0570121,1970.6,1969.9,1.08132133]
[1771730688543,1.0570121,1970.6,1970.1,1.08132133]
[1771730689150,1.64982255,1971.0,1970.1,1.08132133]
[1771730689351,1.0570121,1970.9,1970.1,1.08132133]
[1771730690158,1.06300282,1971.2,1970.9,1.08132133]
[1771730691051,0.00599072,1971.2,1970.9,1.08132133]
[1771730698357,1.0570121,1971.0,1970.2,1.08132133]
[1771730698659,1.0570121,1970.8,1970.3,1.08132133]
[1771730699761,1.06300282,1971.2,1970.5,1.08132133]
[1771730700352,1.06300282,1971.2,1970.7,1.08132133]
[1771730700556,0.00599072,1971.2,1970.7,1.08132133]
[1771730701857,1.0570121,1971.1,1970.5,1.08132133]
[1771730702062,1.0570121,1970.9,1970.5,1.08132133]
[1771730705768,1.0570121,1971.0,1970.5,1.08132133]
[1771730709072,1.15247471,1971.2,1970.5,1.08132133]
[1771730717288,7.03242941,1971.1,1970.5,1.08132133]
[1771730717488,1.11330809,1971.1,1970.5,1.08132133]
[1771730719287,5.92028991,1971.0,1970.5,1.08132133]
[1771730719482,1.11330809,1970.9,1970.5,1.08132133]
[1771730723185,1.11330809,1970.9,1970.4,1.06514638]
[1771730723384,1.11330809,1970.9,1970.1,1.06514638]
[1771730723891,1.11330809,1970.7,1970.1,1.06514638]
[1771730726295,1.11330809,1970.5,1970.0,1.06514638]
[1771730726496,1.11330809,1970.6,1970.0,1.06514638]
[1771730730089,1.11330809,1970.9,1970.0,1.06514638]
[1771730730288,1.11330809,1970.7,1970.0,1.06514638]
[1771730733999,1.11330809,1971.1,1970.0,1.06514638]
[1771730734190,1.11330809,1970.9,1970.0,1.06514638]
[1771730743215,7.01078882,1970.8,1970.0,1.06514638]
[1771730743503,1.0919451,1970.8,1970.0,1.06514638]
[1771730747104,1.0919451,1970.9,1970.0,1.06514638]
[1771730747310,1.0919451,1970.7,1970.0,1.06514638]
[1771730748414,1.0919451,1970.7,1969.8,9.61585224]
[1771730748415,1.0919451,1971.0,1970.2,1.11722868]
[1771730748714,5.92817374,1970.9,1970.2,1.11722868]
[1771730748909,1.0919451,1971.0,1970.2,1.11722868]
[1771730749213,5.92822326,1970.9,1970.2,1.11722868]
[1771730749409,1.0919451,1971.0,1970.2,1.11722868]
[1771730749612,5.92872878,1970.9,1970.2,1.11722868]
[1771730749813,1.0919451,1971.0,1970.2,1.11722868]
[1771730750118,5.92874548,1970.9,1970.2,1.11722868]
[1771730750411,1.0919451,1971.0,1970.2,1.11722868]
[1771730750613,5.92927831,1970.9,1970.2,1.11722868]
[1771730750803,1.0919451,1971.0,1970.2,1.11722868]
[1771730751000,5.9292785,1970.9,1970.2,1.11722868]
[1771730751209,1.0919451,1970.8,1970.2,1.11722868]
[1771730758117,1.0919451,1971.0,1970.2,1.11722868]
[1771730758318,7.02373257,1970.9,1970.2,1.11722868]
[1771730758616,5.93178747,1970.8,1970.2,1.11722868]